bitfinex-derivatives/quotes_BTCF0:USTF0_20250929
["timestamp","ask_amount","ask_price","bid_price","bid_amount"]
[1759139103611,1.93110579,112140.0,112130.0,0.005]
[1759139104410,1.11642579,112140.0,112130.0,0.005]
[1759139104604,1.93106579,112140.0,112130.0,0.005]
[1759139105313,1.11642579,112140.0,112130.0,0.005]
[1759139105508,1.93106579,112140.0,112130.0,0.02717]
[1759139107714,2.07916579,112140.0,112130.0,0.02717]
[1759139108209,1.26452579,112140.0,112130.0,0.02717]
[1759139108414,2.07912579,112140.0,112130.0,0.02717]
[1759139109814,1.26452579,112140.0,112130.0,0.02717]
[1759139110014,2.07912579,112140.0,112130.0,0.02717]
[1759139110812,1.26452579,112140.0,112130.0,0.02717]
[1759139111011,2.07908579,112140.0,112130.0,0.02717]
[1759139112007,1.26452579,112140.0,112130.0,0.02717]
[1759139112212,2.07908579,112140.0,112130.0,0.02717]
[1759139112710,1.11642579,112140.0,112130.0,0.28499837]
[1759139112915,1.93098579,112140.0,112130.0,0.04097]
[1759139114424,1.11642579,112140.0,112130.0,0.04097]
[1759139114712,1.41528905,112140.0,112130.0,0.04097]
[1759139114917,1.67311742,112140.0,112130.0,0.29879837]
[1759139115125,1.93094579,112140.0,112130.0,0.29879837]
[1759139116416,1.93094579,112140.0,112130.0,0.04097]
[1759139116613,1.93094579,112140.0,112130.0,0.02717]
[1759139116808,1.11642579,112140.0,112130.0,0.02717]
[1759139117014,1.93094579,112140.0,112130.0,0.02717]
[1759139117515,1.11642579,112140.0,112130.0,0.02717]
[1759139117721,1.93094579,112140.0,112130.0,0.02717]
[1759139121827,1.41528905,112140.0,112130.0,0.02717]
[1759139122016,1.93094579,112140.0,112130.0,0.02717]
[1759139122519,1.41528905,112140.0,112130.0,0.02717]
[1759139122721,1.93094579,112140.0,112130.0,0.02717]
[1759139124634,1.11642579,112140.0,112130.0,0.02717]
[1759139124834,1.93086579,112140.0,112130.0,0.02717]
[1759139126440,1.93086579,112140.0,112130.0,0.03983]
[1759139127137,1.93086579,112140.0,112130.0,0.02717]
[1759139127544,1.93097432,112140.0,112130.0,0.02717]
[1759139128742,1.11653432,112140.0,112130.0,0.02717]
[1759139128934,1.93097432,112140.0,112130.0,0.02717]
[1759139130236,0.60087758,112140.0,112130.0,0.02717]
[1759139130437,0.22718758,112140.0,112130.0,0.3457859]
[1759139130647,1.29941595,112140.0,112130.0,0.7457859]
[1759139131545,1.31206595,112140.0,112130.0,0.7457859]
[1759139131738,1.56989432,112140.0,112130.0,0.7457859]
[1759139131935,1.31206595,112140.0,112130.0,0.7457859]
[1759139132744,1.29941595,112140.0,112130.0,0.7457859]
[1759139133137,0.48501595,112140.0,112130.0,0.7457859]
[1759139133338,1.29937595,112140.0,112130.0,0.7457859]
[1759139133539,1.31202595,112140.0,112130.0,0.48795753]
[1759139133848,1.31202595,112140.0,112130.0,0.7457859]
[1759139134034,1.56985432,112140.0,112130.0,0.7457859]
[1759139134239,1.05415758,112140.0,112130.0,0.7457859]
[1759139134439,1.56981432,112140.0,112130.0,0.69765837]
[1759139134739,1.31198595,112140.0,112130.0,0.69765837]
[1759139135147,1.56981432,112140.0,112130.0,0.69765837]
[1759139137844,1.56981432,112140.0,112130.0,0.43983]
[1759139138045,1.93061432,112140.0,112130.0,0.43983]
[1759139138339,1.93061432,112140.0,112130.0,0.005]
[1759139141053,2.07871432,112140.0,112130.0,0.005]
[1759139142348,2.07877862,112140.0,112130.0,0.005]
[1759139142545,2.11088611,112140.0,112130.0,0.005]
[1759139144552,2.07869862,112140.0,112130.0,0.005]
[1759139146453,2.47869862,112140.0,112130.0,0.005]
[1759139148653,1.66445862,112140.0,112130.0,0.005]
[1759139148854,2.47865862,112140.0,112130.0,0.005]
[1759139149660,1.66445862,112140.0,112130.0,0.005]
[1759139149860,2.47865862,112140.0,112130.0,0.005]
[1759139151157,1.66445862,112140.0,112130.0,0.005]
[1759139151358,2.47865862,112140.0,112130.0,0.005]
[1759139152365,2.83945862,112140.0,112130.0,0.005]
[1759139152864,2.02525862,112140.0,112130.0,0.005]
[1759139153055,2.83945862,112140.0,112130.0,0.005]
[1759139155859,1.50953758,112140.0,112130.0,0.005]
[1759139156069,2.02525862,112140.0,112130.0,0.005]
[1759139156365,2.83941862,112140.0,112130.0,0.005]
[1759139156860,2.32369758,112140.0,112130.0,0.005]
[1759139157066,2.83941862,112140.0,112130.0,0.005]
[1759139161762,2.02525862,112140.0,112130.0,0.005]
[1759139161966,2.83941862,112140.0,112130.0,0.005]
[1759139165370,2.02525862,112140.0,112130.0,0.005]
[1759139165676,2.83941862,112140.0,112130.0,0.005]
[1759139169575,2.83937862,112140.0,112130.0,0.005]
[1759139170265,2.02525862,112140.0,112130.0,0.005]
[1759139170469,2.83937862,112140.0,112130.0,0.005]
[1759139172173,2.87148611,112140.0,112130.0,0.005]
[1759139173777,2.85082282,112140.0,112130.0,0.005]
[1759139174877,2.03670282,112140.0,112130.0,0.005]
[1759139175078,2.85082282,112140.0,112130.0,0.005]
[1759139176179,2.03670282,112140.0,112130.0,0.005]
[1759139176382,2.85082282,112140.0,112130.0,0.005]
[1759139176680,2.85082282,112140.0,112130.0,0.027]
[1759139176981,2.85082282,112140.0,112130.0,0.005]
[1759139177581,2.03670282,112140.0,112130.0,0.005]
[1759139177770,2.85078282,112140.0,112130.0,0.005]
[1759139182584,2.12918282,112140.0,112130.0,0.005]
[1759139182883,2.85078282,112140.0,112130.0,0.005]
[1759139184484,2.89894405,112140.0,112130.0,0.005]
[1759139184885,2.85078282,112140.0,112130.0,0.005]
[1759139187191,2.89894405,112140.0,112130.0,0.005]
[1759139187684,2.85078282,112140.0,112130.0,0.005]
[1759139187888,2.85078282,112140.0,112130.0,0.00604133]
[1759139188187,2.81867533,112140.0,112130.0,0.00604133]
[1759139188584,2.81863533,112140.0,112130.0,0.02908133]
[1759139188780,2.81863533,112140.0,112130.0,0.02932991]
[1759139188985,2.81863533,112140.0,112130.0,0.00628991]
[1759139195696,2.81863533,112140.0,112130.0,0.00632991]
[1759139197996,2.00459533,112140.0,112130.0,0.00632991]
[1759139198190,2.81855533,112140.0,112130.0,0.00632991]
[1759139198391,2.00459533,112140.0,112130.0,0.02936991]
[1759139198684,2.81855533,112140.0,112130.0,0.02936991]
[1759139199091,2.00459533,112140.0,112130.0,0.02936991]
[1759139199296,2.81855533,112140.0,112130.0,0.00632991]
[1759139199497,2.41855533,112140.0,112130.0,0.00632991]
[1759139200596,1.90279429,112140.0,112130.0,0.00632991]
[1759139200796,2.41851533,112140.0,112130.0,0.00632991]
[1759139202593,2.41851533,112140.0,112130.0,0.02936991]
[1759139202894,2.41851533,112140.0,112130.0,0.00632991]
[1759139204200,1.60457645,112140.0,112130.0,0.00632991]
[1759139204400,0.11737979,112140.0,112130.0,0.83779062]
[1759139204596,0.93125979,112140.0,112130.0,0.83779062]
[1759139204901,1.27825497,112140.0,112130.0,0.83779062]
[1759139205289,1.53610605,112140.0,112130.0,0.83779062]
[1759139205485,1.39498389,112140.0,112130.0,0.49078744]
[1759139205697,1.91068605,112140.0,112130.0,0.49078744]
[1759139206498,1.90966108,112140.0,112130.0,0.49078744]
[1759139208499,1.90966108,112140.0,112130.0,0.74863852]
[1759139210294,1.90966108,112140.0,112130.0,0.70051099]
[1759139214906,1.90966108,112140.0,112130.0,0.44265991]
[1759139215107,1.90966108,112140.0,112130.0,0.68722099]
[1759139215299,1.90966108,112140.0,112130.0,0.42936991]
[1759139216607,1.39395892,112140.0,112130.0,0.42936991]
[1759139216905,1.90966108,112140.0,112130.0,0.44304991]
[1759139219104,1.90966108,112140.0,112130.0,0.70090099]
[1759139222207,1.90966108,112140.0,112130.0,0.44304991]
[1759139224706,1.90966108,112140.0,112130.0,0.42936991]
[1759139225408,1.09578108,112140.0,112130.0,0.42936991]
[1759139225707,1.90942108,112140.0,112130.0,0.42936991]
[1759139225904,1.90942108,112140.0,112130.0,0.00632991]
[1759139231911,1.09578108,112140.0,112130.0,0.00632991]
[1759139232106,1.90934108,112140.0,112130.0,0.00632991]
[1759139236216,2.05744108,112140.0,112130.0,0.00632991]
[1759139237420,2.05740108,112140.0,112130.0,0.00632991]
[1759139237717,2.05736108,112140.0,112130.0,0.00632991]
[1759139238419,1.24388108,112140.0,112130.0,0.00632991]
[1759139238612,2.05736108,112140.0,112130.0,0.00632991]
[1759139247222,2.05728108,112140.0,112130.0,0.00632991]
[1759139248818,1.24388108,112140.0,112130.0,0.00632991]
[1759139249025,2.05728108,112140.0,112130.0,0.00632991]
[1759139249229,2.05728108,112140.0,112130.0,0.02866991]
[1759139252430,1.24388108,112140.0,112130.0,0.02866991]
[1759139252631,2.05720108,112140.0,112130.0,0.02866991]
[1759139256934,1.24388108,112140.0,112130.0,0.02866991]
[1759139257236,2.05716108,112140.0,112130.0,0.02866991]
[1759139258834,1.24388108,112140.0,112130.0,0.02866991]
[1759139259137,2.05716108,112140.0,112130.0,0.02866991]
[1759139260035,1.24388108,112140.0,112130.0,0.02866991]
[1759139260236,2.05712108,112140.0,112130.0,0.02866991]
[1759139261742,1.24388108,112140.0,112130.0,0.02866991]
[1759139262038,2.05712108,112140.0,112130.0,0.02866991]
[1759139262734,1.24388108,112140.0,112130.0,0.11782121]
[1759139263135,2.05708108,112140.0,112130.0,0.11782121]
[1759139264535,2.05704108,112140.0,112130.0,0.11782121]
[1759139265337,1.24388108,112140.0,112130.0,0.11782121]
[1759139265538,2.05704108,112140.0,112130.0,0.11782121]
[1759139266238,1.79917192,112140.0,112130.0,0.11782121]
[1759139267044,0.98601192,112140.0,112130.0,0.11782121]
[1759139267344,1.69620782,112140.0,112130.0,0.13049121]
[1759139267536,1.78535122,112140.0,112130.0,0.13049121]
[1759139267942,0.97223122,112140.0,112130.0,0.13049121]
[1759139268243,1.78535122,112140.0,112130.0,0.13049121]
[1759139270236,0.97223122,112140.0,112130.0,0.13049121]
[1759139270535,1.78531122,112140.0,112130.0,0.13049121]
[1759139270940,0.97223122,112140.0,112130.0,0.13049121]
[1759139271140,1.78531122,112140.0,112130.0,0.13049121]
[1759139275846,0.71439822,112140.0,112130.0,0.13049121]
[1759139276047,1.78527122,112140.0,112130.0,0.13049121]
[1759139279246,1.79892122,112140.0,112130.0,0.13049121]
[1759139280841,0.56629822,112140.0,112130.0,0.78832421]
[1759139281247,1.37925822,112140.0,112130.0,0.53049121]
[1759139282239,0.11635482,112140.0,112130.0,0.53049121]
[1759139282442,0.11635482,112140.0,112130.0,0.83648633]
[1759139282644,0.09353482,112140.0,112130.0,0.83648633]
[1759139282842,0.07277098,112140.0,112130.0,1.21327235]
[1759139283656,0.00310725,112140.0,112130.0,1.21327235]
[1759139283850,0.13165679,112160.0,112150.0,0.1251554]
[1759139284055,0.96557853,112160.0,112150.0,0.43110196]
[1759139284260,0.94457679,112160.0,112150.0,0.17326896]
[1759139284457,0.13165679,112160.0,112150.0,0.83110196]
[1759139284748,0.95592171,112160.0,112150.0,0.83110196]
[1759139285054,0.96292171,112160.0,112150.0,0.83439187]
[1759139286552,0.14465679,112160.0,112150.0,0.83539187]
[1759139287056,0.013,112160.0,112150.0,1.19619187]
[1759139287250,0.013,112160.0,112150.0,1.21418613]
[1759139287748,0.013,112160.0,112150.0,1.97887257]
[1759139288457,1.0522772,112180.0,112170.0,0.01365]
[1759139288761,0.4722772,112180.0,112170.0,0.3829726]
[1759139288959,0.4722772,112180.0,112170.0,0.38426251]
[1759139289553,0.38316,112180.0,112170.0,0.38426251]
[1759139289854,0.02236,112180.0,112170.0,1.16301142]
[1759139290059,0.0134,112180.0,112170.0,1.213002]
[1759139290250,0.013,112180.0,112170.0,1.213002]
[1759139290451,0.0134,112180.0,112170.0,2.025722]
[1759139290651,0.4718597,112200.0,112190.0,0.1251226]
[1759139290956,1.5424127,112200.0,112190.0,0.12641251]
[1759139291262,0.45325672,112200.0,112190.0,0.38424551]
[1759139291451,1.26553672,112200.0,112190.0,0.38424551]
[1759139291645,1.52336972,112200.0,112190.0,0.38424551]
[1759139291854,1.52336972,112200.0,112190.0,0.38624551]
[1759139291855,0.46625672,112200.0,112190.0,0.38624551]
[1759139292063,0.55495142,112200.0,112190.0,0.38624551]
[1759139292356,0.55535142,112200.0,112190.0,0.38624551]
[1759139292761,0.54235142,112200.0,112190.0,0.38424551]
[1759139292968,0.47925672,112200.0,112190.0,0.38724551]
[1759139293159,0.11845672,112200.0,112190.0,0.38724551]
[1759139294068,0.20755162,112200.0,112190.0,0.38724551]
[1759139296863,0.18155162,112200.0,112190.0,0.38424551]
[1759139297060,0.19555162,112200.0,112190.0,0.38524551]
[1759139297262,0.22155162,112200.0,112190.0,0.38824551]
[1759139297962,0.22155162,112200.0,112190.0,0.40639437]
[1759139298861,0.22155162,112200.0,112190.0,0.14856137]
[1759139299169,0.47938462,112200.0,112190.0,0.14856167]
[1759139299367,0.49288462,112200.0,112190.0,0.14856167]
[1759139300267,0.47938462,112200.0,112190.0,0.14856167]
[1759139308076,0.18155162,112200.0,112190.0,0.14456167]
[1759139308277,0.43938462,112200.0,112190.0,0.14456167]
[1759139308477,0.45338462,112200.0,112190.0,0.14656167]
[1759139312084,0.19555162,112200.0,112190.0,0.40439467]
[1759139312386,0.21614036,112200.0,112190.0,0.40439467]
[1759139313182,0.21614036,112200.0,112190.0,0.14656167]
[1759139313480,0.21614036,112200.0,112190.0,0.40439467]
[1759139317185,0.24824785,112200.0,112190.0,0.40439467]
[1759139320184,0.29640908,112200.0,112190.0,0.40439467]
[1759139320888,0.55424208,112200.0,112190.0,0.40439467]
[1759139322089,0.50608085,112200.0,112190.0,0.40439467]
[1759139324480,0.47397336,112200.0,112190.0,0.40439467]
[1759139325891,0.47397336,112200.0,112190.0,0.14656167]
[1759139326089,0.47397336,112200.0,112190.0,0.40439467]
[1759139327188,0.47397336,112200.0,112190.0,0.14656167]
[1759139328193,0.47397336,112200.0,112190.0,0.40405627]
[1759139328194,0.47363496,112200.0,112190.0,0.40405627]
[1759139328692,0.48639496,112200.0,112190.0,0.14656167]
[1759139328889,0.48639496,112200.0,112190.0,0.40405627]
[1759139329685,0.21614036,112200.0,112190.0,0.40405627]
[1759139329889,0.47363496,112200.0,112190.0,0.40405627]
[1759139330687,0.21614036,112200.0,112190.0,0.40405627]
[1759139330884,1.28567496,112200.0,112190.0,0.40405627]
[1759139332501,0.47363496,112200.0,112190.0,0.40405627]
[1759139332686,1.28563496,112200.0,112190.0,0.40405627]
[1759139332988,1.28563496,112200.0,112190.0,0.45204685]
[1759139334386,1.02814036,112200.0,112190.0,0.45204685]
[1759139334585,1.28563496,112200.0,112190.0,0.45204685]
[1759139337389,1.28559496,112200.0,112190.0,0.45204685]
[1759139340398,0.47363496,112200.0,112190.0,0.45204685]
[1759139340599,1.28555496,112200.0,112190.0,0.45204685]
[1759139341400,0.47363496,112200.0,112190.0,0.45204685]
[1759139341699,1.28555496,112200.0,112190.0,0.45204685]
[1759139342398,1.02806036,112200.0,112190.0,0.45204685]
[1759139342596,0.12704546,112200.0,112190.0,0.70954145]
[1759139342799,0.10508546,112200.0,112190.0,0.66155087]
[1759139342994,0.03458874,112200.0,112190.0,1.42235087]
[1759139343198,0.03458874,112200.0,112190.0,1.48649901]
[1759139343199,0.0004,112200.0,112190.0,1.48649901]
[1759139343498,1.0255908,112220.0,112210.0,0.03518]
[1759139343699,1.31551793,112220.0,112210.0,0.2926746]
[1759139343892,1.31551793,112220.0,112210.0,0.38305151]
[1759139344399,0.76123793,112220.0,112210.0,0.29396451]
[1759139344696,1.01873253,112220.0,112210.0,0.03646991]
[1759139344897,1.03149253,112220.0,112210.0,0.02377991]
[1759139345098,1.03849253,112220.0,112210.0,0.02377991]
[1759139345294,1.08597007,112220.0,112210.0,0.02677991]
[1759139345896,1.06549253,112220.0,112210.0,0.02677991]
[1759139346601,1.13581191,112220.0,112210.0,0.02677991]
[1759139346797,1.10181191,112220.0,112210.0,0.02777991]
[1759139347306,1.10681191,112220.0,112210.0,0.02377991]
[1759139350404,1.91861191,112220.0,112210.0,0.02377991]
[1759139355804,2.31861191,112220.0,112210.0,0.00128991]
[1759139357210,2.608214,112220.0,112210.0,0.00128991]
[1759139357911,1.796414,112220.0,112210.0,0.00128991]
[1759139358209,2.608094,112220.0,112210.0,0.00128991]
[1759139360005,2.608134,112220.0,112210.0,0.00128991]
[1759139360914,2.57602651,112220.0,112210.0,0.00128991]
[1759139361411,2.608134,112220.0,112210.0,0.00128991]
[1759139361812,2.608094,112220.0,112210.0,0.00128991]
[1759139362813,1.796414,112220.0,112210.0,0.00128991]
[1759139363001,2.608094,112220.0,112210.0,0.00128991]
[1759139366610,1.84457523,112220.0,112210.0,0.00128991]
[1759139366816,2.65625523,112220.0,112210.0,0.00128991]
[1759139369818,2.62414774,112220.0,112210.0,0.00128991]
[1759139370019,2.62410774,112220.0,112210.0,0.00128991]
[1759139371815,2.65615619,112220.0,112210.0,0.00128991]
[1759139372319,0.124074,112190.0,112180.0,0.7443007]
[1759139372520,0.40222696,112190.0,112180.0,0.7443007]
[1759139372719,0.38928696,112190.0,112180.0,0.7443007]
[1759139373718,0.38928696,112190.0,112180.0,0.7523007]
[1759139373917,0.38928696,112190.0,112180.0,0.7483007]
[1759139374622,0.38928696,112190.0,112180.0,0.79638864]
[1759139374623,0.3686286,112190.0,112180.0,0.79638864]
[1759139377522,0.3686286,112190.0,112180.0,0.7483007]
[1759139381322,0.3686286,112190.0,112180.0,0.81244884]
[1759139381716,0.3686286,112190.0,112180.0,0.79638164]
[1759139382615,0.111134,112190.0,112180.0,0.79638164]
[1759139382810,0.3686286,112190.0,112180.0,0.79638164]
[1759139383324,0.3686286,112190.0,112180.0,0.7483007]
[1759139388226,0.36868482,112190.0,112180.0,0.4908061]
[1759139390622,0.27958082,112190.0,112180.0,0.4908061]
[1759139397828,0.27958082,112190.0,112180.0,0.55495424]
[1759139400329,0.36868362,112190.0,112180.0,0.55495424]
[1759139400532,0.38139362,112190.0,112180.0,0.4908061]
[1759139400720,0.38139362,112190.0,112180.0,0.1300061]
[1759139400721,0.40200541,112190.0,112180.0,0.1300061]
[1759139401030,1.16280562,112190.0,112180.0,0.16450355]
[1759139403628,1.16280562,112190.0,112180.0,0.14125355]
[1759139404035,1.14219362,112190.0,112180.0,0.14125355]
[1759139404335,1.1627921,112190.0,112180.0,0.14125355]
[1759139405332,1.1627921,112190.0,112180.0,0.0931061]
[1759139405835,1.1627921,112190.0,112180.0,0.1146661]
[1759139406134,1.9741921,112190.0,112180.0,0.1146661]
[1759139407538,1.9741921,112190.0,112180.0,0.02556]
[1759139408537,1.9741921,112190.0,112180.0,0.004]
[1759139409439,1.1627921,112190.0,112180.0,0.114672]
[1759139409939,1.9741921,112190.0,112180.0,0.114672]
[1759139411034,1.9741921,112190.0,112180.0,0.02556]
[1759139412037,1.9741921,112190.0,112180.0,0.004]
[1759139413346,1.9741921,112190.0,112180.0,0.02556]
[1759139415843,1.71664128,112190.0,112180.0,0.02556]
[1759139416043,1.9741921,112190.0,112180.0,0.02556]
[1759139416735,1.9741921,112190.0,112180.0,0.004]
[1759139417129,1.1627921,112190.0,112180.0,0.004]
[1759139417335,1.9741521,112190.0,112180.0,0.02565]
[1759139417834,1.9741521,112190.0,112180.0,0.004]
[1759139418335,1.9741521,112190.0,112180.0,0.02565]
[1759139418939,1.9741121,112190.0,112180.0,0.114762]
[1759139420441,1.9741121,112190.0,112180.0,0.02565]
[1759139423448,1.9741121,112190.0,112180.0,0.004]
[1759139426148,1.9740721,112190.0,112180.0,0.02565]
[1759139427248,1.9740721,112190.0,112180.0,0.004]
[1759139428149,1.97395403,112190.0,112180.0,0.004]
[1759139430052,1.57395403,112190.0,112180.0,0.004]
[1759139432461,1.97395403,112190.0,112180.0,0.004]
[1759139435558,1.97387403,112190.0,112180.0,0.004]
[1759139435952,1.97388374,112190.0,112180.0,0.004]
[1759139438155,2.33468374,112190.0,112180.0,0.004]
[1759139439062,2.33464374,112190.0,112180.0,0.004]
[1759139439457,1.93464374,112190.0,112180.0,0.004]
[1759139443558,2.33464374,112190.0,112180.0,0.004]
[1759139446263,2.59219456,112190.0,112180.0,0.004]
[1759139446467,2.33464374,112190.0,112180.0,0.004]
[1759139448265,2.85014624,112190.0,112180.0,0.004]
[1759139452164,2.88219437,112190.0,112180.0,0.004]
[1759139457274,0.1114578,112160.0,112150.0,0.08385745]
[1759139457473,1.81914881,112160.0,112150.0,0.08385745]
[1759139457873,1.81914881,112160.0,112150.0,0.17299325]
[1759139458175,1.00810881,112160.0,112150.0,0.17299325]
[1759139458374,1.81914881,112160.0,112150.0,0.17299325]
[1759139458566,1.00810881,112160.0,112150.0,0.17299325]
[1759139458771,1.81910881,112160.0,112150.0,0.18299325]
[1759139459166,1.81910881,112160.0,112150.0,0.17299325]
[1759139459469,1.00910881,112160.0,112150.0,0.18999325]
[1759139459675,1.82014881,112160.0,112150.0,0.18999325]
[1759139459979,1.82010881,112160.0,112150.0,0.18999325]
[1759139460179,0.49373993,112160.0,112150.0,0.18999325]
[1759139460482,1.82010881,112160.0,112150.0,0.18999325]
[1759139461176,1.00910881,112160.0,112150.0,0.18999325]
[1759139461478,1.89214845,112160.0,112150.0,0.18999325]
[1759139462467,1.90245083,112160.0,112150.0,0.18999325]
[1759139463077,1.91590083,112160.0,112150.0,0.08797745]
[1759139464469,1.8954187,112160.0,112150.0,0.08797745]
[1759139464975,1.8954187,112160.0,112150.0,0.17711325]
[1759139465979,1.91589884,112160.0,112150.0,0.06514745]
[1759139466481,1.91589884,112160.0,112150.0,0.08797745]
[1759139468288,1.91589638,112160.0,112150.0,0.08797745]
[1759139468585,1.91489638,112160.0,112150.0,0.07397745]
[1759139468779,1.8944187,112160.0,112150.0,0.07997745]
[1759139468980,1.91485638,112160.0,112150.0,0.07997745]
[1759139469181,1.8943787,112160.0,112150.0,0.07997745]
[1759139469389,1.10389631,112160.0,112150.0,0.07997745]
[1759139469579,1.91485631,112160.0,112150.0,0.07997745]
[1759139470286,1.91485639,112160.0,112150.0,0.05714745]
[1759139470487,1.93531226,112160.0,112150.0,0.05714745]
[1759139470690,1.93531162,112160.0,112150.0,0.07997745]
[1759139471187,1.93531162,112160.0,112150.0,0.05714745]
[1759139471579,0.0891358,112150.0,112140.0,0.07097745]
[1759139471784,1.02082028,112150.0,112140.0,0.07097745]
[1759139472188,1.02082028,112150.0,112140.0,0.04814745]
[1759139472482,0.1243337,112140.0,112130.0,0.07101745]
[1759139472684,1.80846258,112140.0,112130.0,0.07101745]
[1759139473591,1.80846258,112140.0,112130.0,0.16016915]
[1759139473890,1.80846258,112140.0,112130.0,0.16916915]
[1759139474691,1.80846258,112140.0,112130.0,0.16516915]
[1759139476092,1.80846258,112140.0,112130.0,0.07601745]
[1759139476894,1.82891788,112140.0,112130.0,0.02787]
[1759139477088,2.08660232,112140.0,112130.0,0.00504]
[1759139477394,1.82891788,112140.0,112130.0,0.00504]
[1759139478093,1.82891788,112140.0,112130.0,0.02497]
[1759139478698,1.82891788,112140.0,112130.0,0.02697]
[1759139481892,1.80846258,112140.0,112130.0,0.02697]
[1759139485997,0.99750258,112140.0,112130.0,0.02697]
[1759139486197,1.80846258,112140.0,112130.0,0.02697]
[1759139486697,1.80846258,112140.0,112130.0,0.00504]
[1759139488198,1.82893849,112140.0,112130.0,0.00504]
[1759139489008,1.80846258,112140.0,112130.0,0.00504]
[1759139489297,1.82893836,112140.0,112130.0,0.00504]
[1759139490399,1.80846258,112140.0,112130.0,0.00504]
[1759139491189,1.82893999,112140.0,112130.0,0.00504]
[1759139492595,2.08662443,112140.0,112130.0,0.00504]
[1759139496414,2.08654443,112140.0,112130.0,0.00504]
[1759139497416,2.10790958,112140.0,112130.0,4e-05]
[1759139497714,2.11090958,112140.0,112130.0,4e-05]
[1759139497902,1.30002958,112140.0,112130.0,4e-05]
[1759139498107,2.11086958,112140.0,112130.0,4e-05]
[1759139498710,1.30002958,112140.0,112130.0,4e-05]
[1759139499108,2.11086958,112140.0,112130.0,4e-05]
[1759139502602,0.52697626,112140.0,112130.0,0.02326]
[1759139502913,1.04234514,112140.0,112130.0,0.02326]
[1759139503108,1.85318514,112140.0,112130.0,0.02326]
[1759139506814,1.85318514,112140.0,112130.0,4e-05]
[1759139509415,1.85318514,112140.0,112130.0,0.0212]
[1759139510217,1.8535102,112140.0,112130.0,0.0212]
[1759139513016,1.8535102,112140.0,112130.0,4e-05]
[1759139515719,1.8535102,112140.0,112130.0,0.0212]
[1759139517220,1.8535102,112140.0,112130.0,0.06934745]
[1759139521714,0.50661111,112140.0,112130.0,0.06934745]
[1759139521919,1.57509808,112140.0,112130.0,0.08264745]
[1759139522318,0.76445808,112140.0,112130.0,0.08264745]
[1759139523023,1.57509808,112140.0,112130.0,0.08264745]
[1759139523521,0.76445808,112140.0,112130.0,0.08264745]
[1759139524123,1.57505808,112140.0,112130.0,0.08264745]
[1759139524717,1.57505808,112140.0,112130.0,0.06934745]
[1759139527522,1.57505808,112140.0,112130.0,0.08264745]
[1759139530115,1.57501808,112140.0,112130.0,0.08264745]
[1759139530721,1.31717111,112140.0,112130.0,0.08264745]
[1759139530922,1.57501808,112140.0,112130.0,0.08264745]
[1759139531225,1.57497808,112140.0,112130.0,0.08264745]
[1759139531525,0.76445808,112140.0,112130.0,0.08264745]
[1759139531730,1.57497808,112140.0,112130.0,0.08264745]
[1759139531921,1.31713111,112140.0,112130.0,0.08264745]
[1759139532224,1.57497808,112140.0,112130.0,0.08264745]
[1759139533925,1.30427111,112140.0,112130.0,0.48264745]
[1759139534126,1.56211808,112140.0,112130.0,0.48264745]
[1759139534328,0.75159808,112140.0,112130.0,0.48264745]
[1759139534627,1.56211808,112140.0,112130.0,0.48264745]
[1759139535126,1.56211808,112140.0,112130.0,0.57179915]
[1759139536318,0.94347111,112140.0,112130.0,0.82964612]
[1759139536524,0.1124737,112140.0,112130.0,0.78149867]
[1759139536819,0.9259537,112140.0,112130.0,1.14229867]
[1759139541024,0.02633,112140.0,112130.0,1.14229867]
[1759139541330,0.9035837,112140.0,112130.0,1.14229867]
[1759139543130,0.81444,112140.0,112130.0,1.14229867]
[1759139543329,0.004,112140.0,112130.0,1.14229867]
[1759139544626,0.004,112140.0,112130.0,1.20644681]
[1759139545732,0.004,112140.0,112130.0,2.01680681]
[1759139546426,0.004,112140.0,112130.0,1.20644681]
[1759139546632,0.004,112140.0,112130.0,2.01680681]
[1759139547432,0.004,112140.0,112130.0,1.95265867]
[1759139554740,0.004,112140.0,112130.0,2.00073816]
[1759139555642,0.004,112140.0,112130.0,2.01035765]
[1759139556036,0.004,112140.0,112130.0,1.19037816]
[1759139556337,0.004,112140.0,112130.0,2.00065816]
[1759139557140,0.004,112140.0,112130.0,1.19037816]
[1759139557336,0.004,112140.0,112130.0,2.00065816]
[1759139559443,0.004,112140.0,112130.0,1.60065816]
[1759139561440,0.004,112140.0,112130.0,1.55257867]
[1759139564639,0.004,112140.0,112130.0,1.61672681]
[1759139565040,0.0931437,112140.0,112130.0,1.61664681]
[1759139565241,0.1163037,112140.0,112130.0,0.80644681]
[1759139565436,0.1163037,112140.0,112130.0,1.61664681]
[1759139567447,0.1163037,112140.0,112130.0,0.80644681]
[1759139567752,0.1163037,112140.0,112130.0,1.61660681]
[1759139571348,0.1163037,112140.0,112130.0,0.80644681]
[1759139571644,0.1163037,112140.0,112130.0,1.61660681]
[1759139572245,0.1163037,112140.0,112130.0,1.61648971]
[1759139578852,0.1163037,112140.0,112130.0,0.80632971]
[1759139579050,0.1163037,112140.0,112130.0,1.61640971]
[1759139580649,0.02716,112140.0,112130.0,1.61640971]
[1759139580850,0.004,112140.0,112130.0,1.61640971]
[1759139582653,0.004,112140.0,112130.0,1.55226157]
[1759139584952,0.0931437,112140.0,112130.0,1.62226157]
[1759139585147,0.1160537,112140.0,112130.0,1.62222157]
[1759139585545,0.1160537,112140.0,112130.0,0.5544517]
[1759139585752,0.1160537,112140.0,112130.0,1.3644917]
[1759139585952,0.1160537,112140.0,112130.0,1.62222157]
[1759139588858,0.02691,112140.0,112130.0,1.62222157]
[1759139590158,0.004,112140.0,112130.0,1.62222157]
[1759139590761,0.1160537,112140.0,112130.0,1.68632971]
[1759139591861,0.02691,112140.0,112130.0,1.68632971]
[1759139592961,0.1160537,112140.0,112130.0,1.68632971]
[1759139593662,0.37378357,112140.0,112130.0,0.61859984]
[1759139593865,0.37378357,112140.0,112130.0,1.61628971]
[1759139594462,0.37378357,112140.0,112130.0,1.68628971]
[1759139594659,0.37378357,112140.0,112130.0,1.62214157]
[1759139595162,0.37378357,112140.0,112130.0,1.3644117]
[1759139595361,0.37378357,112140.0,112130.0,1.62214157]
[1759139595962,0.37378357,112140.0,112130.0,1.3644117]
[1759139596162,0.37378357,112140.0,112130.0,1.62214157]
[1759139597973,0.37378357,112140.0,112130.0,0.5544517]
[1759139598266,0.37378357,112140.0,112130.0,1.62210157]
[1759139600864,0.37378357,112140.0,112130.0,1.68624971]
[1759139603870,0.28463987,112140.0,112130.0,1.68624971]
[1759139604572,0.26172987,112140.0,112130.0,1.68624971]
[1759139604765,0.004,112140.0,112130.0,1.68624971]
[1759139610975,0.004,112140.0,112130.0,1.94397958]
[1759139611977,0.004,112140.0,112130.0,2.34397958]